bitfinex/quotes_ETHUSD_20240729
["timestamp","ask_amount","ask_price","bid_price","bid_amount"]
[1722277503579,3.00837,3324.1,3323.2,0.300913]
[1722277503787,0.06005877,3324.0,3323.2,0.300913]
[1722277504143,3.00851,3323.9,3323.2,3.00907]
[1722277504583,0.06005877,3323.8,3323.2,3.00907]
[1722277504966,3.06866877,3323.8,3323.0,3.0093]
[1722277505191,0.06005877,3323.7,3323.0,3.0093]
[1722277505852,0.06005877,3323.7,3322.8,3.00947]
[1722277506049,0.30686688,3323.6,3322.8,3.00947]
[1722277506282,0.30686688,3323.6,3322.3,10.34992]
[1722277506454,0.06005877,3323.7,3323.0,3.00931]
[1722277507012,0.06005877,3323.7,3322.4,3.00987]
[1722277507013,6.00857,3323.9,3322.4,3.00987]
[1722277507014,0.06005877,3323.8,3322.4,3.00987]
[1722277507150,0.06005877,3323.8,3323.3,3.00904]
[1722277507576,0.06005877,3323.8,3323.4,3.00896]
[1722277507790,0.06005877,3323.8,3323.5,3.00881]
[1722277507996,0.06005877,3324.0,3323.5,3.00881]
[1722277508206,0.60091465,3324.0,3323.6,3.00878]
[1722277508515,3.00809,3324.4,3323.6,3.00878]
[1722277508516,2.4986,3326.2,3323.9,1.5]
[1722277508805,2.4986,3326.2,3325.2,3.00725]
[1722277509008,2.4986,3326.2,3324.1,6.1813]
[1722277509009,0.06005877,3326.1,3325.4,3.00715]
[1722277509302,0.06005877,3326.1,3324.4,4.164]
[1722277509303,0.06005877,3326.1,3324.5,6.00795]
[1722277509504,2.664,3325.1,3324.3,3.00811]
[1722277509661,2.4994,3325.2,3324.1,6.00832]
[1722277509662,2.664,3324.6,3324.1,6.00832]
[1722277509862,2.664,3324.6,3324.4,3.00805]
[1722277510132,2.72405877,3325.0,3324.1,6.00832]
[1722277510262,2.4369,3325.6,3324.7,3.00773]
[1722277510605,0.06005877,3325.5,3324.1,4.5]
[1722277510776,0.06005877,3325.5,3323.5,4.931]
[1722277510777,2.664,3324.9,3324.2,3.0]
[1722277510976,0.06005877,3324.8,3324.0,3.0084]
[1722277511187,0.06005877,3324.8,3324.1,3.0]
[1722277511392,0.06005877,3324.8,3323.8,3.0086]
[1722277511393,0.33246465,3324.8,3323.8,3.0086]
[1722277511702,3.552,3324.6,3323.8,3.0086]
[1722277511913,0.06005877,3324.5,3323.8,3.0086]
[1722277512488,0.06005877,3324.5,3323.5,3.00883]
[1722277513030,0.06005877,3324.5,3323.3,3.00903]
[1722277513031,3.552,3324.2,3323.3,3.00903]
[1722277513183,0.06005877,3324.1,3323.3,3.00903]
[1722277513513,0.06005877,3324.1,3322.5,3.7937]
[1722277513514,0.06005877,3324.1,3323.1,3.00923]
[1722277513723,2.4338,3324.0,3323.1,3.00923]
[1722277513885,0.06005877,3323.9,3323.1,3.00923]
[1722277514237,0.06005877,3323.9,3322.5,3.00971]
[1722277514238,6.56062,3323.8,3322.5,3.00971]
[1722277514380,6.56062,3323.8,3322.8,3.0095]
[1722277514381,0.06005877,3323.7,3322.8,3.0095]
[1722277514585,0.06005877,3323.7,3322.7,3.00956]
[1722277515398,0.06005877,3323.7,3322.2,0.62155292]
[1722277515399,3.06874877,3323.7,3322.6,3.00967]
[1722277515737,3.06874877,3323.7,3322.0,0.62155292]
[1722277515738,3.552,3323.0,3322.0,0.62155292]
[1722277516035,3.552,3323.0,3321.9,0.93232938]
[1722277516036,0.06005877,3322.9,3322.1,1.04730928]
[1722277516360,0.06005877,3322.9,3321.9,0.62155292]
[1722277516530,0.06005877,3322.9,3322.0,1.04735409]
[1722277516683,0.06005877,3322.9,3322.0,0.1668907]
[1722277516886,0.06005877,3322.9,3321.7,0.62155292]
[1722277517086,0.06005877,3322.9,3321.8,1.07972077]
[1722277517289,0.06005877,3322.9,3321.6,0.62155292]
[1722277517627,0.06005877,3322.9,3320.8,5.35303929]
[1722277517628,2.48604798,3320.5,3320.2,3.552]
[1722277517934,1.67708436,3320.6,3320.5,4.85528656]
[1722277517935,9.06e-06,3320.6,3320.5,4.85528656]
[1722277518101,8.37980174,3321.7,3321.2,3.01093]
[1722277518300,26.18717087,3321.6,3321.2,3.01093]
[1722277518628,14.66481568,3321.5,3321.4,3.01073]
[1722277518847,19.90224986,3321.5,3321.4,3.62707818]
[1722277519126,19.90224986,3321.5,3320.7,0.3018]
[1722277519127,26.18717087,3321.5,3321.0,0.3018]
[1722277519329,19.90217981,3321.4,3321.2,3.0109]
[1722277519504,5.23743418,3321.4,3321.3,6.20610302]
[1722277519707,19.44550057,3321.4,3321.3,3.19524302]
[1722277519912,19.44550057,3321.4,3321.3,0.19524302]
[1722277520088,19.44550057,3321.4,3320.0,3.01204]
[1722277520089,25.73042158,3321.4,3319.2,1.5]
[1722277520293,4.68651538,3320.4,3320.3,6.02354]
[1722277520516,23.65884775,3320.4,3320.3,6.02354]
[1722277520834,18.97233237,3320.4,3320.3,6.02354]
[1722277520991,18.97233237,3320.4,3320.3,3.01177]
[1722277521342,18.97233237,3320.4,3319.9,3.01212]
[1722277521487,14.66496767,3320.3,3320.1,3.01188]
[1722277521804,14.66496767,3320.2,3320.0,3.313242]
[1722277521991,14.66496767,3320.1,3320.0,3.313242]
[1722277522424,14.66594418,3320.1,3320.0,3.313242]
[1722277522739,14.66594418,3320.1,3320.0,0.301212]
[1722277523288,14.66594418,3320.1,3319.0,2.4974168]
[1722277523645,3.63497578,3319.6,3319.5,3.0125]
[1722277523789,10.47595341,3319.6,3319.5,3.0125]
[1722277523995,14.66594418,3319.6,3319.4,3.01257]
[1722277524193,14.66594418,3319.5,3319.4,3.01257]
[1722277524433,13.58143108,3319.5,3319.4,9.1793192]
[1722277524737,1.02183244,3319.5,3319.4,20.64627364]
[1722277525042,0.09963298,3319.5,3319.4,21.18764744]
[1722277525344,3.63192159,3320.4,3320.3,6.02354]
[1722277525522,3.63192159,3320.4,3320.3,9.02354]
[1722277525842,3.63192159,3321.2,3320.5,3.01155]
[1722277526049,3.63192159,3321.2,3320.6,3.0]
[1722277526390,3.63192159,3321.2,3320.3,3.0]
[1722277526592,3.63192159,3321.3,3320.3,3.0]
[1722277526787,3.63192159,3321.3,3320.4,0.55]
[1722277527026,3.63192159,3321.2,3320.4,3.56166]
[1722277527227,3.63192159,3321.2,3320.5,3.06021951]
[1722277527431,11.56078713,3321.7,3320.6,0.55]
[1722277527432,2.59055352,3320.7,3320.6,0.55]
[1722277527589,7.37,3321.7,3320.9,3.01115]
[1722277527815,7.37,3321.7,3321.0,1.67646314]
[1722277528037,7.37,3321.7,3321.0,0.55]
[1722277528243,10.38053,3321.7,3320.7,0.55]
[1722277528444,10.38053,3321.7,3320.6,0.55]
[1722277528646,3.10810873,3320.8,3320.6,2.44384728]
[1722277529235,3.10810873,3320.8,3320.3,3.01177]
[1722277529433,2.58938018,3320.4,3320.3,3.01177]
[1722277530134,2.58938018,3320.4,3320.3,6.01177]
[1722277530335,2.58938018,3320.6,3320.5,6.02318]
[1722277530555,3.10810873,3321.2,3321.0,3.01112]
[1722277530854,3.10810873,3321.3,3321.0,3.01112]
[1722277531163,3.10810873,3321.3,3321.1,0.06021484]
[1722277531634,7.37,3321.8,3321.1,0.06021484]
[1722277531635,6.25112704,3321.2,3321.1,0.06021484]
[1722277531973,6.25112704,3321.2,3320.5,6.01157]
[1722277532124,2.58790981,3320.9,3320.6,3.55]
[1722277532327,2.58790981,3320.7,3320.6,3.55]
[1722277532521,2.61940712,3320.7,3320.6,3.06022403]
[1722277532793,2.61940712,3320.7,3320.6,6.023]
[1722277533078,4.80966001,3320.7,3320.6,6.0115]
[1722277533357,4.80945273,3320.7,3320.6,9.023]
[1722277533656,4.71461348,3320.7,3320.6,12.0345]
[1722277533856,6.59146865,3320.7,3320.6,12.0345]
[1722277534060,6.59146865,3320.7,3320.6,12.5845]
[1722277534557,3.97206153,3320.7,3320.6,12.5845]
[1722277534758,2.09520636,3320.7,3320.6,12.5845]
[1722277535162,5.54331326,3320.7,3320.6,9.573]
[1722277535348,8.16231805,3320.7,3320.6,9.573]
[1722277535526,8.16223125,3320.7,3320.6,9.573]
[1722277535722,6.35345846,3320.7,3320.6,9.573]
[1722277536067,8.23010073,3320.7,3320.6,9.573]
[1722277536249,6.35345846,3320.7,3320.6,9.573]
[1722277536561,6.35345846,3320.7,3320.6,6.5615]
[1722277536769,6.35345846,3320.7,3320.6,6.0115]
[1722277536930,8.54328202,3320.7,3320.6,6.0115]
[1722277537122,6.35345846,3320.7,3320.6,6.0115]
[1722277537760,6.35345846,3320.7,3320.6,3.0115]
[1722277537920,6.35345846,3320.7,3320.6,3.5615]
[1722277538123,6.35371438,3320.7,3320.6,3.5615]
[1722277538424,6.35371438,3320.7,3320.6,9.573]
[1722277539067,6.35377206,3320.7,3320.6,9.573]
[1722277539404,3.73470959,3320.7,3320.6,9.573]
[1722277539916,8.23081918,3320.7,3320.6,9.573]
[1722277540072,6.35378037,3320.7,3320.6,9.573]
[1722277541475,6.35365512,3320.7,3320.6,9.573]
[1722277543286,8.54434863,3320.7,3320.6,9.573]
[1722277543502,6.35365512,3320.7,3320.6,9.573]
[1722277543687,8.54434863,3320.7,3320.6,6.573]
[1722277543888,6.35365512,3320.7,3320.6,6.573]
[1722277544569,4.78214662,3320.7,3320.6,6.573]
[1722277544767,6.66129125,3320.7,3320.6,6.573]
[1722277544976,7.40141335,3320.7,3320.2,3.01185]
[1722277545310,7.40141335,3320.7,3320.2,3.01186]
[1722277545311,2.19236837,3320.4,3320.2,3.01186]
[1722277545498,9.52591224,3320.3,3320.1,3.01189]
[1722277545676,7.33354387,3320.2,3320.1,3.01189]
[1722277545872,7.33354387,3320.2,3319.8,3.314]
[1722277546228,9.21290354,3320.1,3319.9,3.01213]
[1722277546368,7.33354387,3320.0,3319.7,3.01231]
[1722277546594,7.33354387,3319.9,3319.5,3.01246]
[1722277546795,9.52591224,3319.8,3319.0,3.1602068]
[1722277547027,2.4074,3320.0,3319.0,3.1602068]
[1722277547028,1.87989737,3319.2,3319.1,3.01286]
[1722277547247,6.59437046,3319.2,3319.1,3.01286]
[1722277547446,4.71447309,3319.2,3319.1,9.09882965]
[1722277547612,6.28073152,3319.2,3319.1,9.09882965]
[1722277547829,5.96821587,3319.2,3319.1,9.35082435]
[1722277548146,5.96821587,3319.2,3319.1,9.65262435]
[1722277548292,5.96821587,3319.2,3319.1,12.65262435]
[1722277548737,4.71525546,3319.2,3319.1,12.34038]
[1722277548896,4.71525546,3319.2,3319.1,9.87752]
[1722277549219,5.96824531,3319.2,3319.1,9.32752]
[1722277549425,4.71525546,3319.2,3319.1,9.32752]
[1722277549630,4.71525546,3319.2,3319.1,9.02572]
[1722277549808,6.28145779,3319.2,3319.1,9.02572]
[1722277550364,5.96842169,3319.2,3319.1,9.02572]
[1722277550932,5.96850857,3319.2,3319.1,9.87752]
[1722277551100,4.71539382,3319.2,3319.1,9.87752]
[1722277551296,5.96851375,3319.2,3319.1,9.87752]
[1722277551730,5.96851375,3319.2,3319.1,12.89038]
[1722277551930,4.71539382,3319.2,3319.1,9.87752]
[1722277552138,6.03638323,3319.2,3319.1,12.89038]
[1722277552294,3.31453391,3319.2,3319.1,16.44238]
[1722277552496,2.68805694,3319.2,3319.1,16.44238]
[1722277552840,3.62784454,3319.2,3319.1,16.44238]
[1722277553131,2.68805694,3319.2,3319.1,16.44238]
[1722277553340,3.31455108,3319.2,3319.1,16.44238]
[1722277553512,3.31460734,3319.2,3319.1,18.73718]
[1722277553713,1.11594446,3319.2,3319.1,18.73718]
[1722277553919,1.11594446,3319.2,3319.1,21.75004]
[1722277554235,2.68772271,3319.2,3319.1,18.73718]
[1722277554449,0.06786948,3319.2,3319.1,21.75004]
[1722277554617,0.06786948,3319.2,3319.1,18.73718]
[1722277554933,1.11580091,3319.2,3319.1,18.73718]
[1722277555242,2.68771045,3319.2,3319.1,18.73718]
[1722277555439,3.62749805,3319.2,3319.1,18.73718]
[1722277555595,1.80888151,3319.2,3319.1,21.75004]
[1722277556122,9.11e-06,3319.3,3319.2,12.35288]
[1722277556433,1.25311993,3319.5,3319.4,9.33957]
[1722277556642,3.34885805,3319.5,3319.4,9.88957]
[1722277556826,2.09573812,3319.5,3319.4,12.88957]
[1722277557000,3.34885805,3319.5,3319.4,12.88957]
[1722277557199,2.09573812,3319.5,3319.4,12.88957]
[1722277557508,3.34885805,3319.5,3319.4,12.88957]
[1722277557726,2.09573812,3319.5,3319.4,12.88957]
[1722277557979,3.35312261,3319.5,3319.4,12.2608268]
[1722277558351,3.66737618,3319.5,3319.4,12.2608268]
[1722277558552,2.09573812,3319.5,3319.4,12.2608268]
[1722277558800,3.66879859,3319.5,3319.4,12.2608268]
[1722277559290,2.09573812,3319.5,3319.4,9.87698]
[1722277559455,6.60170394,3319.5,3319.4,9.87698]
[1722277559656,3.98170379,3319.5,3319.4,9.87698]
[1722277559879,2.09573812,3319.5,3319.4,9.57518]
[1722277560203,4.7157,3319.5,3319.4,9.87698]
[1722277560352,4.7157,3319.5,3319.4,9.57518]
[1722277560704,4.7157,3319.5,3319.4,12.58777]
[1722277560705,2.09573812,3319.5,3319.4,12.58777]
[1722277560870,3.67064188,3319.5,3319.4,12.58777]
[1722277561188,2.09573812,3319.5,3319.4,12.58777]
[1722277561817,4.7157307,3319.5,3319.4,9.57518]
[1722277562023,4.7157307,3319.5,3319.4,6.01259]
[1722277562222,6.92068541,3319.5,3319.4,3.0]
[1722277562525,4.7157307,3319.5,3319.3,0.20484729]
[1722277562710,4.7157307,3319.4,3319.1,3.01285]
[1722277562927,6.92293899,3319.3,3319.0,3.1602368]
[1722277563113,6.92293899,3319.2,3319.0,0.1473168]
[1722277563329,4.7157307,3319.1,3319.0,0.1473168]
[1722277563920,4.7157307,3319.1,3319.0,6.1732168]
[1722277563921,6.92310921,3319.1,3319.0,6.1732168]
[1722277564093,4.7157307,3319.1,3319.0,6.1732168]
[1722277564430,2.09573812,3319.1,3319.0,6.1732168]
[1722277564648,4.7157307,3319.1,3319.0,6.1732168]
[1722277564941,6.60763329,3319.1,3319.0,6.1732168]
[1722277565239,4.7157307,3319.1,3319.0,6.1732168]
[1722277565542,3.98728011,3319.1,3319.0,6.7232168]
[1722277565708,6.60756488,3319.1,3319.0,6.7232168]
[1722277566189,5.5600115,3319.1,3319.0,3.1602668]
[1722277566391,3.66804155,3319.1,3319.0,3.1602668]
[1722277566688,6.28832632,3319.1,3319.0,0.1473168]
[1722277566925,4.71602289,3319.1,3319.0,0.1473168]
[1722277567119,6.28850936,3319.1,3319.0,0.1473168]
[1722277567433,8.49524216,3319.1,3319.0,0.1473168]
[1722277568091,8.49524216,3319.1,3319.0,3.1602668]
[1722277568320,6.28850936,3319.1,3319.0,6.23347128]
[1722277568643,3.66822459,3319.1,3319.0,6.63615448]
[1722277568788,3.66822459,3319.1,3319.0,13.20110448]
[1722277568990,2.51773428,3319.1,3319.0,16.20110448]
[1722277569211,6.47e-06,3319.1,3319.0,19.21405448]
[1722277569548,1.57560233,3319.5,3319.4,9.33957]
[1722277569549,1.98e-06,3319.5,3319.4,9.33957]
[1722277569762,1.98e-06,3319.5,3319.4,15.89157]
[1722277570044,0.94524781,3319.8,3319.7,6.32644]
[1722277570259,1.26038913,3320.0,3319.7,6.32644]
[1722277570260,1.26021835,3320.0,3319.9,3.01206]
[1722277570549,3.67101794,3320.0,3319.8,3.01222]
[1722277570753,2.09580831,3319.9,3319.6,3.01233]
[1722277571054,1.26035563,3319.7,3319.4,3.55]
[1722277571262,2.412,3319.8,3319.7,6.02464]
[1722277571425,4.5079822,3319.8,3319.7,6.02464]
[1722277571945,4.5079822,3319.8,3319.4,0.8518]
[1722277571946,4.5079822,3319.8,3319.4,0.55]
[1722277572151,1.26040725,3319.5,3319.4,3.01259]
[1722277572958,3.35638295,3319.5,3319.4,3.01259]
[1722277573134,0.94526255,3319.5,3319.4,3.01259]
[1722277574016,0.94526255,3319.6,3319.5,3.0125]
[1722277574211,3.67240075,3319.8,3319.5,3.0125]
[1722277574212,3.35653635,3319.7,3319.5,3.0125]
[1722277574556,2.0961356,3319.6,3319.5,3.0125]
[1722277574725,3.04136923,3319.7,3319.5,3.0125]
[1722277574926,0.9452627,3319.7,3319.6,3.01241]
[1722277575142,0.9452627,3319.7,3319.6,6.63506355]
[1722277575347,0.9452627,3319.9,3319.8,6.02444]
[1722277575509,0.9452627,3319.9,3319.8,3.01214]
[1722277575510,1.9931146,3319.9,3319.8,3.01214]
[1722277575712,4.40423601,3319.9,3319.8,3.01214]
[1722277576044,3.14383526,3319.9,3319.8,3.01214]
[1722277576210,3.14384308,3319.9,3319.6,3.56233]
[1722277576417,4.40424383,3319.8,3319.7,3.01232]
[1722277577139,1.99318286,3319.8,3319.7,6.02464]
[1722277577345,1.04794247,3319.8,3319.7,6.02464]
[1722277577553,1.04794247,3319.8,3319.7,6.57464]
[1722277577759,0.94524039,3320.1,3320.0,3.01204]
[1722277577989,1.04791236,3320.1,3320.0,3.01204]
[1722277578191,1.04791236,3320.1,3320.0,9.03612]
[1722277578489,1.04791236,3320.1,3320.0,9.57408]
[1722277578697,1.04782858,3320.1,3320.0,9.87588]
[1722277578998,0.94525575,3320.3,3320.0,3.8518]
[1722277579151,1.57545985,3320.6,3320.1,6.5739]
[1722277579152,1.0477595,3320.2,3320.1,6.5739]
[1722277579353,0.63015877,3320.2,3320.1,3.55]
[1722277579575,2.61943485,3320.2,3320.1,6.56195]
[1722277579785,2.61962131,3320.2,3320.1,6.56195]
[1722277579971,2.61962131,3320.2,3320.0,3.01202]
[1722277579972,3.56494556,3320.2,3320.0,3.01202]
[1722277580172,1.26043233,3320.3,3320.0,3.01202]
[1722277580173,3.56494556,3320.1,3320.0,3.01202]
[1722277580582,4.71543327,3320.1,3319.9,3.01211]
[1722277580766,1.26043233,3320.2,3319.8,3.01216]
[1722277580767,5.97595049,3320.0,3319.8,3.01216]
[1722277580964,3.56524903,3319.9,3319.8,3.01216]
[1722277581205,6.52256173,3319.9,3319.5,3.0125]
[1722277581355,0.94573493,3319.6,3319.5,3.0125]
[1722277581554,2.61962131,3319.6,3319.5,3.0125]
[1722277581754,3.56547618,3319.6,3319.5,3.0125]
[1722277582194,4.71558476,3319.6,3319.5,6.025]
[1722277582365,2.61962131,3319.6,3319.5,6.575]
[1722277582764,0.6306157,3319.6,3319.5,6.575]
[1722277583077,2.62002037,3319.6,3319.5,6.575]
[1722277583284,3.25064932,3319.6,3319.5,6.575]
[1722277583504,2.62002037,3319.6,3319.5,6.575]
[1722277583661,3.56590059,3319.6,3319.5,6.575]
[1722277583860,3.52235659,3319.6,3319.5,6.575]
[1722277584063,2.57647637,3319.6,3319.5,6.575]
[1722277584277,3.52235659,3319.6,3319.5,6.575]
[1722277584598,4.67253197,3319.6,3319.5,6.575]
[1722277584802,3.5226695,3319.6,3319.5,3.5625]
[1722277584959,4.6725982,3319.6,3319.5,3.5625]
[1722277585156,2.57647637,3319.6,3319.5,3.5625]
[1722277585360,3.83745628,3319.6,3319.5,3.5625]
[1722277585708,3.83745628,3319.6,3319.5,6.575]
[1722277586003,3.66806778,3319.6,3319.5,3.5625]
[1722277586370,1.57202905,3319.6,3319.5,6.575]
[1722277586888,2.20304347,3319.6,3319.5,12.5875]
[1722277588044,0.63101442,3319.8,3319.7,9.03696]
[1722277588227,0.94651622,3320.0,3319.8,9.03666]
[1722277588228,0.63101442,3319.9,3319.8,9.03666]
[1722277588432,0.94651622,3320.2,3320.0,0.3018]
[1722277588639,0.94651622,3320.2,3320.1,0.61023033]
[1722277588813,1.26097991,3320.3,3320.2,6.02372]
[1722277589149,2.09550631,3320.3,3320.2,6.57372]
[1722277589433,4.92807498,3320.3,3320.2,6.57372]
[1722277589914,3.14950189,3320.3,3320.2,6.57372]
[1722277590240,3.14950189,3320.3,3320.2,3.01186]
[1722277590241,5.24499678,3320.3,3320.2,3.01186]
[1722277590543,5.24499678,3320.3,3319.3,3.552]
[1722277590544,3.66709507,3320.3,3319.9,3.01212]
[1722277590746,3.66709507,3320.2,3320.0,3.01204]
[1722277591032,3.66709507,3320.1,3320.0,3.01204]
[1722277591342,3.66709507,3320.1,3319.8,3.01215]
[1722277591538,5.24592555,3320.0,3319.8,3.01215]
[1722277591839,5.24592555,3319.9,3319.5,3.01247]
[1722277592011,3.66709507,3319.8,3319.7,3.01232]
[1722277592211,1.57160018,3319.8,3319.7,3.56232]
[1722277592433,2.09549489,3320.1,3319.8,3.01222]
[1722277592610,8.34326302,3337.8,3319.7,3.56232]
[1722277592611,1.57894739,3319.9,3319.7,3.56232]
[1722277592794,2.21042809,3320.5,3319.7,3.56232]
[1722277592795,5.24646421,3319.8,3319.7,3.56232]
[1722277593001,3.66749025,3319.8,3319.7,3.56232]
[1722277593200,1.57199536,3319.8,3319.7,3.56232]
[1722277594041,3.66749025,3319.8,3319.7,3.56232]
[1722277594207,5.24646421,3319.8,3319.7,3.56232]
[1722277594549,3.66749025,3319.8,3319.7,3.56232]
[1722277595039,4.93066471,3319.8,3319.7,3.56232]
[1722277595347,3.66749025,3319.8,3319.7,3.56232]
[1722277595549,2.09549489,3319.8,3319.7,3.56232]
[1722277595714,3.66746863,3319.8,3319.7,3.56232]
[1722277596041,1.57197374,3319.8,3319.7,3.56232]
[1722277596542,3.66746863,3319.8,3319.7,3.56232]
[1722277596840,1.57197374,3319.8,3319.7,3.56232]
[1722277598044,3.15094966,3319.8,3319.7,2.93351669]
[1722277598214,3.15094966,3319.8,3319.5,3.01248]
[1722277598215,7.74464455,3319.8,3319.5,3.01248]
[1722277598415,7.74464455,3319.8,3319.3,3.01266]
[1722277598416,1.57897592,3319.6,3319.3,3.01266]
[1722277598607,1.26334317,3319.4,3319.3,3.01266]
[1722277598808,5.2469534,3319.4,3319.3,3.01266]
[1722277599036,3.66771311,3319.4,3319.3,3.01266]
[1722277599419,2.83557989,3319.4,3319.3,3.01266]
[1722277599712,4.93107478,3319.4,3319.3,3.01266]
[1722277600739,3.66771311,3319.4,3319.3,6.02534]
[1722277600939,3.66840823,3319.4,3319.3,6.57534]
[1722277601137,3.66839258,3319.4,3319.3,6.57534]
[1722277601308,4.93175425,3319.4,3319.3,6.57534]
[1722277601508,3.66839258,3319.4,3319.3,6.57534]
[1722277601714,4.93175425,3319.4,3319.3,6.57534]
[1722277602050,4.93169233,3319.4,3319.3,6.57534]
[1722277602268,3.66830277,3319.4,3319.3,6.57534]
[1722277602558,4.93166444,3319.4,3319.3,6.57534]
[1722277602709,4.93166444,3319.4,3319.3,3.56266]
[1722277602910,4.93166444,3319.4,3319.3,0.55]
[1722277603106,3.66830277,3319.4,3319.2,0.55]
[1722277603413,4.93172171,3319.3,3319.2,3.56277]
[1722277603613,2.83557524,3319.3,3319.2,3.56277]
[1722277603814,4.71647268,3319.3,3319.2,3.56277]
[1722277604059,3.88374104,3319.3,3319.2,3.56277]
[1722277604554,2.62032621,3319.3,3319.2,3.56277]
[1722277604737,5.97987872,3319.3,3319.2,3.56277]
[1722277604911,3.88373225,3319.3,3319.2,3.56277]
[1722277605107,4.71656995,3319.3,3319.2,3.56277]
[1722277605524,5.97989722,3319.3,3319.2,3.56277]
[1722277605924,6.29583867,3319.3,3319.2,0.55]
[1722277606125,4.1996922,3319.3,3319.1,3.55]
[1722277606312,5.97993048,3319.2,3319.1,0.55]
[1722277606631,5.97993048,3319.2,3319.0,3.01293]
[1722277606632,4.71656995,3319.2,3319.0,3.01293]
[1722277606834,4.71656995,3319.2,3318.9,0.55]
[1722277606835,5.97989362,3319.1,3318.9,0.55]
[1722277607040,4.71656995,3319.0,3318.9,3.55]
[1722277607240,3.88374715,3319.0,3318.9,0.55]
[1722277607544,5.97982754,3319.0,3318.9,3.56304]
[1722277607746,5.97982754,3319.0,3318.9,0.55]
[1722277608455,5.98003434,3319.0,3318.9,0.55]
[1722277608620,3.88388787,3319.0,3318.9,0.55]
[1722277608816,5.98003434,3319.0,3318.9,0.55]
[1722277609130,3.88388787,3319.0,3318.8,3.01106832]
[1722277609453,3.56793492,3318.9,3318.8,3.01106832]
[1722277609622,3.56793492,3318.9,3318.8,6.01106832]
[1722277610431,2.62063028,3318.9,3318.8,9.02419832]
[1722277610646,0.63148651,3319.1,3319.0,6.0259]
[1722277610856,3.25183583,3319.2,3319.1,6.02572]
[1722277611036,3.25175664,3319.2,3319.1,9.02572]
[1722277611233,3.25175664,3319.2,3319.1,12.03858]
[1722277611234,2.62027013,3319.2,3319.1,12.03858]
[1722277611419,0.63148651,3319.5,3319.4,6.02518]
[1722277611622,2.62008133,3319.5,3319.4,6.02518]
[1722277612253,0.63137338,3319.6,3319.5,6.025]
[1722277612453,0.94730464,3319.7,3319.6,6.02482]
[1722277612714,1.67935451,3319.7,3319.6,6.02482]
[1722277612921,2.61981886,3319.7,3319.4,3.01257]
[1722277613120,0.63133599,3319.9,3319.8,6.02444]
[1722277613320,3.25102612,3319.9,3319.8,6.02444]
[1722277613625,3.25102612,3319.9,3319.8,3.01222]
[1722277613964,2.61969013,3319.9,3319.8,6.08467649]
[1722277614133,2.61969013,3319.9,3319.8,3.07245649]
[1722277614376,0.94730464,3320.0,3319.9,3.01213]
[1722277614568,3.56705409,3320.0,3319.9,3.07236508]
[1722277614765,3.88300704,3320.0,3319.8,3.01221]
[1722277615003,4.7156027,3319.9,3319.8,3.01221]
[1722277615392,5.97886029,3319.9,3319.8,3.01221]
[1722277615903,4.7156027,3319.9,3319.8,3.01221]
[1722277616504,3.56700721,3319.9,3319.8,6.02443]
[1722277616710,2.61974945,3319.9,3319.8,3.01221]
[1722277616867,3.56700721,3319.9,3319.8,3.01221]
[1722277617062,3.56702605,3319.9,3319.6,3.01237]
[1722277617399,3.56702605,3319.8,3319.6,3.01234]
[1722277617712,1.57868171,3320.1,3319.5,6.01248]
[1722277617713,3.56722974,3319.7,3319.5,6.01248]
[1722277618013,2.61993888,3319.6,3319.5,3.0]
[1722277618220,2.61993888,3319.6,3318.8,2.671]
[1722277618221,3.56722974,3319.6,3319.4,6.01258]
[1722277618382,3.56722974,3319.5,3319.4,3.0]
[1722277618584,3.56722974,3319.5,3319.3,3.0]
[1722277618780,1.26305449,3319.6,3318.7,3.01315]
[1722277618781,3.56722974,3319.4,3319.2,6.01271]
[1722277619109,2.61993888,3319.3,3319.2,6.01271]
[1722277619467,3.25154513,3319.3,3319.2,6.01271]
[1722277620212,0.63160625,3319.3,3319.2,6.01271]
[1722277620370,0.63160625,3319.3,3319.1,3.01285]
[1722277620371,2.61993888,3319.3,3319.1,3.01285]
[1722277620572,2.4588,3319.1,3317.8,7.34]
[1722277620823,2.4588,3319.1,3317.7,2.2734]
[1722277620824,0.63173951,3318.3,3318.1,3.01371]
[1722277620965,1.68017243,3318.2,3318.1,3.01377]
[1722277621168,1.68017243,3318.2,3318.0,3.01385]
[1722277621525,2.62115055,3318.1,3318.0,3.01385]
[1722277621676,3.25289006,3318.1,3318.0,3.01385]
[1722277621885,2.20445714,3318.1,3318.0,3.01385]
[1722277622088,1.68017243,3318.2,3318.1,3.01377]
[1722277622314,1.68018641,3318.2,3318.1,3.01377]
[1722277622515,2.52027961,3318.4,3318.1,6.01377]
[1722277622516,3.25285676,3318.3,3318.1,6.01377]
[1722277622700,3.25285676,3318.3,3318.2,3.0]
[1722277622701,0.63173951,3318.3,3318.2,3.0]
[1722277623032,1.68019363,3318.3,3318.2,3.0]
[1722277623214,3.35905412,3318.3,3317.7,3.01404]
[1722277623404,0.6312546,3318.0,3317.7,3.01404]
[1722277623580,0.6312546,3318.0,3317.5,3.01424]
[1722277623786,0.6312546,3317.9,3317.6,3.01421]
[1722277624925,1.67985814,3317.9,3317.6,3.01421]
[1722277625103,1.04860354,3317.8,3317.7,3.0]
[1722277625429,0.6312546,3318.0,3317.7,6.01413]
[1722277625589,1.57292093,3317.9,3317.8,3.01404]
[1722277625933,1.04861414,3317.9,3317.8,3.01404]
[1722277626084,0.6312546,3318.1,3317.9,3.01395]
[1722277626290,1.04858702,3318.0,3317.9,3.01395]
[1722277626728,2.62150513,3318.0,3317.9,3.01395]
[1722277626941,1.04860205,3318.0,3317.7,6.01413]
[1722277627091,0.6312546,3318.1,3317.8,3.01404]
[1722277627597,1.67985781,3318.1,3317.8,3.01404]
[1722277627923,2.62151343,3318.0,3317.8,3.01404]
[1722277628222,0.6312546,3318.2,3317.9,3.01395]
[1722277628441,3.25271114,3318.2,3317.9,3.01395]
[1722277628634,1.04857377,3318.1,3317.9,3.01395]
[1722277628806,0.6312546,3318.2,3317.9,3.01395]
[1722277629014,3.25273702,3318.2,3317.7,6.01412]
[1722277629189,1.04858915,3318.1,3317.7,6.01412]
[1722277629529,0.6312546,3318.2,3317.7,6.01412]
[1722277629703,0.6312546,3318.1,3317.7,3.0]